bitfinex/quotes_BTCUSD_20240717
["timestamp","ask_amount","ask_price","bid_price","bid_amount"]
[1721213289591,1.1313311,65396.0,65395.0,0.000924]
[1721213289768,1.5371601,65396.0,65395.0,0.000924]
[1721213290008,1.5793759,65396.0,65395.0,0.000924]
[1721213290224,1.6023759,65396.0,65395.0,0.001924]
[1721213290608,1.5601601,65396.0,65395.0,0.001924]
[1721213290819,1.5601601,65396.0,65395.0,0.000924]
[1721213291223,1.5641601,65396.0,65395.0,0.000924]
[1721213291636,1.5621601,65396.0,65395.0,0.000924]
[1721213291987,1.5681601,65396.0,65395.0,0.000924]
[1721213292470,1.51845763,65396.0,65395.0,0.000924]
[1721213294723,2.05984615,65396.0,65395.0,0.000924]
[1721213294925,0.161115,65388.0,65387.0,0.000924]
[1721213295131,1.13430045,65388.0,65387.0,0.000924]
[1721213295376,1.74603245,65388.0,65387.0,0.000924]
[1721213295608,1.98990267,65388.0,65387.0,0.000924]
[1721213296448,2.02892428,65388.0,65387.0,0.000924]
[1721213296650,2.02892428,65388.0,65374.0,0.000924]
[1721213296651,1.070744,65375.0,65374.0,0.000924]
[1721213297011,1.22110567,65375.0,65374.0,0.000924]
[1721213297782,1.23310567,65375.0,65374.0,0.000924]
[1721213298497,1.53903267,65375.0,65374.0,0.000924]
[1721213299285,1.58941476,65375.0,65374.0,0.000924]
[1721213299804,1.52501106,65375.0,65374.0,0.000924]
[1721213300177,1.59521467,65375.0,65374.0,0.000924]
[1721213300303,1.63159676,65375.0,65374.0,0.000924]
[1721213300508,1.62341476,65375.0,65374.0,0.000924]
[1721213300708,1.53701106,65375.0,65374.0,0.000924]
[1721213303348,1.53701106,65375.0,65368.0,0.009185]
[1721213303349,1.376712,65373.0,65372.0,0.022424]
[1721213303601,1.64243517,65373.0,65372.0,0.022424]
[1721213303805,2.00775326,65373.0,65372.0,0.022424]
[1721213304003,2.05277056,65373.0,65372.0,0.022424]
[1721213304203,2.06095256,65373.0,65372.0,0.022424]
[1721213305165,2.07295256,65373.0,65372.0,0.022424]
[1721213305386,2.08295256,65373.0,65372.0,0.022424]
[1721213307034,2.07477056,65373.0,65372.0,0.022424]
[1721213307211,1.75783456,65373.0,65372.0,0.022424]
[1721213307605,2.06377056,65373.0,65372.0,0.022424]
[1721213309671,2.07195256,65373.0,65372.0,0.022424]
[1721213309872,2.07195256,65373.0,65368.0,0.009185]
[1721213309873,1.690934,65369.0,65368.0,0.009185]
[1721213310074,1.94531574,65369.0,65368.0,0.009185]
[1721213310301,2.06637265,65369.0,65368.0,0.009185]
[1721213310504,2.06637265,65369.0,65355.0,0.00156708]
[1721213310505,1.377072,65356.0,65355.0,0.00156708]
[1721213310705,0.45903,65355.0,65354.0,0.009185]
[1721213310878,1.07107,65355.0,65354.0,0.009185]
[1721213311108,1.46412468,65355.0,65354.0,0.009185]
[1721213311535,1.42774259,65355.0,65354.0,0.009185]
[1721213313414,1.09630497,65355.0,65354.0,0.009185]
[1721213313834,1.10830497,65355.0,65354.0,0.009185]
[1721213315194,1.41432497,65355.0,65354.0,0.009185]
[1721213315423,1.97472671,65355.0,65354.0,0.009185]
[1721213315592,2.00590871,65355.0,65354.0,0.009185]
[1721213316049,2.04289551,65355.0,65354.0,0.009185]
[1721213316253,2.06833935,65355.0,65354.0,0.009185]
[1721213316562,2.07033935,65355.0,65354.0,0.009185]
[1721213316821,1.75613735,65355.0,65354.0,0.009185]
[1721213317064,1.77013735,65355.0,65354.0,0.009185]
[1721213317244,1.75613735,65355.0,65354.0,0.009185]
[1721213318413,1.78413735,65355.0,65354.0,0.009185]
[1721213325226,1.78413735,65355.0,65354.0,0.153185]
[1721213325431,1.78413735,65355.0,65354.0,0.0814]
[1721213326382,1.377157,65352.0,65351.0,0.009196]
[1721213326587,1.51420068,65352.0,65351.0,0.009196]
[1721213326784,1.56617616,65352.0,65351.0,0.009196]
[1721213326990,1.52537265,65352.0,65351.0,0.009196]
[1721213327328,1.48832897,65352.0,65351.0,0.009196]
[1721213327715,1.50232897,65352.0,65351.0,0.009196]
[1721213327915,1.51632897,65352.0,65351.0,0.009196]
[1721213330742,2.03472771,65352.0,65351.0,0.009196]
[1721213330950,2.05867503,65352.0,65351.0,0.009196]
[1721213331170,2.09573885,65352.0,65351.0,0.009196]
[1721213332039,2.06893885,65352.0,65351.0,0.009196]
[1721213332332,1.71765803,65352.0,65351.0,0.009196]
[1721213332590,1.75476428,65352.0,65351.0,0.009196]
[1721213332817,1.71765803,65352.0,65351.0,0.009196]
[1721213333491,1.75498173,65352.0,65351.0,0.009196]
[1721213335241,1.71765803,65352.0,65351.0,0.009196]
[1721213335470,1.75497041,65352.0,65351.0,0.009196]
[1721213337539,1.76315241,65352.0,65351.0,0.009196]
[1721213337999,2.08498741,65352.0,65351.0,0.009196]
[1721213338767,2.04767503,65352.0,65351.0,0.009196]
[1721213338971,2.08527386,65352.0,65351.0,0.009196]
[1721213341118,2.008435,65351.0,65350.0,0.009196]
[1721213341362,0.467269,65347.0,65346.0,0.000924]
[1721213341602,1.62437089,65347.0,65346.0,0.000924]
[1721213341845,2.42057882,65347.0,65346.0,0.000924]
[1721213342567,2.42057882,65347.0,65346.0,1e-06]
[1721213342798,2.44737882,65347.0,65346.0,1e-06]
[1721213343242,2.48249196,65347.0,65346.0,1e-06]
[1721213343497,2.013541,65341.0,65340.0,0.009185]
[1721213343741,0.314296,65335.0,65334.0,0.009185]
[1721213344013,1.38578,65331.0,65330.0,0.009196]
[1721213344242,1.38578,65331.0,65322.0,0.1392]
[1721213344243,0.008182,65326.0,65322.0,0.1392]
[1721213344478,0.008182,65326.0,65305.0,0.07874187]
[1721213344479,0.153101,65316.0,65315.0,0.1411]
[1721213344672,1.07171,65316.0,65315.0,0.1411]
[1721213344893,1.48873194,65316.0,65315.0,0.1411]
[1721213345106,1.51173194,65316.0,65315.0,0.1411]
[1721213345728,1.55036274,65316.0,65315.0,0.1411]
[1721213346805,0.765577,65310.0,65309.0,0.183518]
[1721213347006,1.094808,65310.0,65309.0,0.1417]
[1721213347213,1.094808,65310.0,65306.0,0.009196]
[1721213347214,1.071826,65309.0,65306.0,0.009196]
[1721213347417,1.65544374,65309.0,65306.0,0.009196]
[1721213347630,2.08360447,65309.0,65306.0,0.009196]
[1721213347844,2.17285351,65309.0,65306.0,0.009196]
[1721213348264,1.692529,65307.0,65306.0,0.009196]
[1721213348473,2.00935978,65307.0,65306.0,0.009196]
[1721213348695,2.14604561,65307.0,65306.0,0.009196]
[1721213349331,2.08359657,65307.0,65306.0,0.009196]
[1721213349739,1.76916957,65307.0,65306.0,0.009196]
[1721213349942,1.71256722,65307.0,65306.0,0.009196]
[1721213350589,1.66690585,65307.0,65306.0,0.009196]
[1721213351012,1.66690585,65307.0,65306.0,0.150696]
[1721213351013,1.24327929,65307.0,65306.0,0.150696]
[1721213351210,1.19727911,65307.0,65306.0,0.150696]
[1721213351439,1.18327911,65307.0,65306.0,0.150696]
[1721213351655,1.19727911,65307.0,65306.0,0.150696]
[1721213352064,1.18327911,65307.0,65306.0,0.150696]
[1721213352275,1.19727911,65307.0,65306.0,0.150696]
[1721213352709,0.89103411,65307.0,65306.0,0.192514]
[1721213352922,0.89103411,65307.0,65306.0,0.150696]
[1721213353133,1.22027911,65307.0,65306.0,0.150696]
[1721213353343,1.68090585,65307.0,65306.0,0.009196]
[1721213353546,1.37466085,65307.0,65306.0,0.009196]
[1721213353970,1.68090585,65307.0,65306.0,0.009196]
[1721213354823,1.68908785,65307.0,65306.0,0.009196]
[1721213356057,0.008182,65301.0,65288.0,0.051025]
[1721213356313,0.459495,65289.0,65288.0,0.051025]
[1721213356499,1.072155,65289.0,65288.0,0.051025]
[1721213356695,1.08339722,65289.0,65288.0,0.051025]
[1721213357253,1.08339722,65289.0,65288.0,0.009207]
[1721213357682,1.66710896,65289.0,65288.0,0.009207]
[1721213358057,1.67110896,65289.0,65288.0,0.009207]
[1721213358984,1.68729096,65289.0,65288.0,0.009207]
[1721213360025,1.67910896,65289.0,65288.0,0.009207]
[1721213360749,1.68729096,65289.0,65288.0,0.009207]
[1721213360954,1.67910896,65289.0,65288.0,0.009207]
[1721213361158,1.66710896,65289.0,65288.0,0.009207]
[1721213361390,1.68929096,65289.0,65288.0,0.009207]
[1721213361642,2.30195096,65289.0,65288.0,0.009207]
[1721213361851,2.34713576,65289.0,65288.0,0.009207]
[1721213362254,2.33313576,65289.0,65288.0,0.009207]
[1721213362460,1.999418,65286.0,65285.0,0.009207]
[1721213362691,0.467732,65281.0,65280.0,0.009207]
[1721213362905,1.68639954,65281.0,65280.0,0.009207]
[1721213363098,2.0784379,65281.0,65280.0,0.009207]
[1721213363316,2.3848049,65281.0,65280.0,1e-06]
[1721213363740,2.0674379,65281.0,65280.0,1e-06]
[1721213364326,2.02696474,65281.0,65280.0,1e-06]
[1721213364710,2.04096474,65281.0,65280.0,1e-06]
[1721213365153,1.99577994,65281.0,65280.0,1e-06]
[1721213365388,2.00977994,65281.0,65280.0,1e-06]
[1721213365599,1.99577994,65281.0,65280.0,1e-06]
[1721213365972,2.31614694,65281.0,65280.0,1e-06]
[1721213366990,2.35844007,65281.0,65280.0,1e-06]
[1721213367185,2.33044007,65281.0,65280.0,1e-06]
[1721213367784,2.30214694,65281.0,65280.0,1e-06]
[1721213367987,2.34444007,65281.0,65280.0,1e-06]
[1721213368196,2.33044007,65281.0,65280.0,1e-06]
[1721213368399,2.34444007,65281.0,65280.0,1e-06]
[1721213368770,2.32225807,65281.0,65280.0,1e-06]
[1721213368977,2.33044007,65281.0,65280.0,1e-06]
[1721213369228,2.33625807,65281.0,65280.0,1e-06]
[1721213369441,2.34444007,65281.0,65280.0,1e-06]
[1721213370050,2.30214694,65281.0,65280.0,1e-06]
[1721213371383,2.28814694,65281.0,65280.0,1e-06]
[1721213371609,2.30214694,65281.0,65280.0,1e-06]
[1721213372212,2.31614694,65281.0,65280.0,1e-06]
[1721213373206,2.00977994,65281.0,65280.0,1e-06]
[1721213373408,1.69523094,65281.0,65280.0,1e-06]
[1721213373818,2.00977994,65281.0,65280.0,1e-06]
[1721213378549,1.69523094,65281.0,65280.0,1e-06]
[1721213378758,1.69523094,65281.0,65280.0,0.064401]
[1721213378962,1.69523094,65281.0,65280.0,0.143101]
[1721213380250,1.66723094,65281.0,65280.0,0.143101]
[1721213380451,1.66723094,65281.0,65280.0,0.118101]
[1721213380676,1.68123094,65281.0,65280.0,0.118101]
[1721213381575,0.8911152,65281.0,65280.0,0.159919]
[1721213381803,1.1974822,65281.0,65280.0,0.118101]
[1721213381996,1.35186394,65281.0,65280.0,0.118101]
[1721213382146,1.35186394,65281.0,65280.0,0.0787]
[1721213382147,1.36004594,65281.0,65280.0,0.0787]
[1721213382349,0.766095,65266.0,65265.0,0.0755]
[1721213382547,1.18161841,65266.0,65265.0,0.0755]
[1721213383539,1.18161841,65266.0,65265.0,0.1363]
[1721213385054,0.87518041,65266.0,65265.0,0.1383]
[1721213385226,1.18161841,65266.0,65265.0,0.1383]
[1721213386973,1.18161841,65266.0,65265.0,0.1363]
[1721213387384,1.18161841,65266.0,65265.0,0.1373]
[1721213387588,1.18161841,65266.0,65265.0,0.1363]
[1721213387822,1.22306688,65266.0,65265.0,0.1363]
[1721213388021,1.64643815,65266.0,65265.0,0.1363]
[1721213388785,1.64243815,65266.0,65265.0,0.1363]
[1721213388991,1.68420718,65266.0,65265.0,0.1363]
[1721213389346,1.64243815,65266.0,65265.0,0.1363]
[1721213389551,1.68414239,65266.0,65265.0,0.1363]
[1721213390397,1.379056,65262.0,65261.0,0.0606]
[1721213390608,1.68420427,65262.0,65261.0,0.0606]
[1721213391276,1.70818544,65262.0,65261.0,0.0606]
[1721213391886,1.72218544,65262.0,65261.0,0.0606]
[1721213392689,1.6804812,65262.0,65261.0,0.0606]
[1721213392904,1.7223152,65262.0,65261.0,0.0606]
[1721213393367,1.7223152,65262.0,65260.0,0.077]
[1721213393368,0.15323,65261.0,65260.0,0.077]
[1721213393579,1.37916,65257.0,65256.0,0.076]
[1721213393795,1.55654174,65257.0,65256.0,0.076]
[1721213393999,1.66557913,65257.0,65256.0,0.076]
[1721213394646,1.68956058,65257.0,65256.0,0.076]
[1721213394867,1.73951618,65257.0,65256.0,0.076]
[1721213395067,0.459758,65252.0,65251.0,0.0633]
[1721213395267,0.98639879,65252.0,65251.0,0.0633]
[1721213395444,1.26016821,65252.0,65251.0,0.1428]
[1721213395647,1.4253222,65252.0,65251.0,0.1428]
[1721213395849,1.20578647,65252.0,65251.0,0.1428]
[1721213396049,1.18180502,65252.0,65251.0,0.1428]
[1721213397805,1.20578799,65252.0,65251.0,0.1428]
[1721213398002,1.20778799,65252.0,65251.0,0.1428]
[1721213398203,1.18380502,65252.0,65251.0,0.1422]
[1721213398608,1.20778805,65252.0,65251.0,0.1422]
[1721213398940,1.20578805,65252.0,65251.0,0.1422]
[1721213399127,1.21378805,65252.0,65251.0,0.1422]
[1721213399341,1.18980502,65252.0,65251.0,0.1422]
[1721213399540,1.18180502,65252.0,65251.0,0.1422]
[1721213399699,1.2057885,65252.0,65251.0,0.1422]
[1721213400714,1.66667424,65252.0,65251.0,0.1422]
[1721213401516,1.67767424,65252.0,65251.0,0.1422]
[1721213401754,1.36016824,65252.0,65251.0,0.1422]
[1721213401931,0.8992825,65252.0,65251.0,0.184018]
[1721213402133,0.27629102,65252.0,65251.0,0.184018]
[1721213402334,0.58279502,65252.0,65251.0,0.184018]
[1721213402591,0.48279502,65252.0,65251.0,0.184018]
[1721213402793,0.78929902,65252.0,65251.0,0.1422]
[1721213402972,0.77529902,65252.0,65251.0,0.1422]
[1721213403208,1.08180302,65252.0,65251.0,0.1422]
[1721213403595,1.08380302,65252.0,65251.0,0.1422]
[1721213403800,0.77729902,65252.0,65251.0,0.184018]
[1721213404122,0.01103902,65252.0,65251.0,0.184018]
[1721213404513,0.31754302,65252.0,65251.0,0.184018]
[1721213404713,0.47079502,65252.0,65251.0,0.184018]
[1721213404910,0.00903902,65252.0,65251.0,0.184018]
[1721213405320,0.005,65252.0,65251.0,0.184018]
[1721213405519,0.1533112,65256.0,65255.0,0.185718]
[1721213405721,6.82e-05,65256.0,65255.0,0.2349409]
[1721213405919,6.82e-05,65256.0,65255.0,0.6946739]
[1721213406354,6.82e-05,65256.0,65255.0,0.3881849]
[1721213406568,0.4597952,65256.0,65255.0,0.185718]
[1721213407195,0.1533102,65256.0,65255.0,0.185718]
[1721213407403,6.82e-05,65256.0,65255.0,0.645451]
[1721213407610,6.82e-05,65256.0,65255.0,0.74836438]
[1721213407829,6.82e-05,65256.0,65255.0,1.05485338]
[1721213408032,0.0060682,65256.0,65255.0,1.20923512]
[1721213408439,6.82e-05,65256.0,65255.0,1.20923512]
[1721213408901,6.82e-05,65256.0,65255.0,1.51672412]
[1721213409129,0.306396,65275.0,65274.0,0.117218]
[1721213409130,0.306399,65275.0,65274.0,0.117218]
[1721213409352,0.33037347,65275.0,65274.0,0.178918]
[1721213409729,0.48357147,65275.0,65274.0,0.1371]
[1721213410130,0.78997047,65275.0,65274.0,0.1371]
[1721213410275,0.88997047,65275.0,65274.0,0.1371]
[1721213410684,0.865996,65275.0,65274.0,0.1371]
[1721213410888,0.865996,65275.0,65274.0,0.178918]
[1721213411096,0.865996,65275.0,65274.0,0.1371]
[1721213411544,0.874996,65275.0,65274.0,0.1371]
[1721213411745,0.874996,65275.0,65274.0,0.0871]
[1721213412059,0.89897005,65275.0,65274.0,0.0871]
[1721213412277,0.90197005,65275.0,65274.0,0.0871]
[1721213412680,0.877996,65275.0,65274.0,0.0871]
[1721213413097,0.88712596,65275.0,65274.0,0.0871]
[1721213414363,0.02112996,65275.0,65274.0,0.1418098]
[1721213414594,0.02112996,65275.0,65274.0,0.2950098]
[1721213415416,0.00912996,65275.0,65274.0,0.2950098]
[1721213415906,0.153191,65278.0,65277.0,0.041818]
[1721213416136,0.306354,65284.0,65278.0,0.1439]
[1721213416340,0.153173,65286.0,65285.0,0.1439]
[1721213416553,0.459517,65286.0,65285.0,0.1439]
[1721213416753,0.459517,65286.0,65260.0,0.12717479]
[1721213416754,0.15438174,65286.0,65276.0,0.0769]
[1721213416942,0.153193,65277.0,65276.0,0.0769]
[1721213417142,1.072351,65277.0,65276.0,0.0769]
[1721213417550,1.172351,65277.0,65276.0,0.0769]
[1721213418276,0.765977,65276.0,65275.0,0.0629]
[1721213418528,0.459615,65272.0,65271.0,0.121918]
[1721213418768,0.766025,65272.0,65271.0,0.121918]
[1721213418970,0.766025,65272.0,65271.0,0.185318]
[1721213421395,0.766025,65272.0,65271.0,0.186318]
[1721213421845,0.766025,65272.0,65271.0,0.185318]
[1721213422850,1.072435,65272.0,65271.0,0.185318]
[1721213423456,1.072435,65272.0,65271.0,0.041818]
[1721213423665,0.76607,65268.0,65267.0,0.106818]
[1721213424663,0.76607,65268.0,65267.0,0.065]
[1721213424871,0.459649,65267.0,65266.0,0.0816]
[1721213425065,0.459663,65265.0,65264.0,0.065]
[1721213425290,1.072547,65265.0,65264.0,0.065]
[1721213425661,1.072582,65263.0,65262.0,0.0816]
[1721213426092,1.072482,65263.0,65262.0,0.0816]
[1721213426902,0.12973303,65272.0,65260.0,0.0647]
[1721213426903,1.072613,65261.0,65260.0,0.0647]
[1721213428284,1.08228174,65261.0,65260.0,0.0647]
[1721213428893,1.09128174,65261.0,65260.0,0.106518]
[1721213429091,0.47835974,65261.0,65260.0,0.189518]
[1721213429492,0.78482074,65261.0,65260.0,0.189518]
[1721213432317,0.78482074,65261.0,65260.0,0.1477]
[1721213432532,0.78482074,65261.0,65260.0,0.189518]
[1721213432755,0.78482074,65261.0,65260.0,0.1477]
[1721213432964,0.78482074,65261.0,65259.0,0.041818]
[1721213432965,0.766165,65260.0,65259.0,0.041818]
[1721213433168,0.153237,65258.0,65257.0,0.105818]
[1721213433371,0.766187,65258.0,65257.0,0.105818]
[1721213433584,0.77777832,65258.0,65257.0,0.064]
[1721213433761,1.08425332,65258.0,65257.0,0.064]
[1721213434516,0.459756,65252.0,65251.0,0.041818]
[1721213434703,0.47132957,65252.0,65251.0,0.041818]
[1721213435165,0.47132957,65252.0,65251.0,0.180018]
[1721213435363,0.77783357,65252.0,65251.0,0.180018]
[1721213435566,0.77783357,65252.0,65251.0,0.1382]
[1721213435567,1.08433757,65252.0,65251.0,0.1382]
[1721213435742,1.08433757,65252.0,65251.0,0.1402]
[1721213436357,1.08433757,65252.0,65251.0,0.002]
[1721213438159,1.08433757,65252.0,65251.0,0.043818]
[1721213438415,0.77783357,65252.0,65251.0,0.186718]
[1721213438645,0.77783357,65252.0,65251.0,0.184718]
[1721213438888,0.78183357,65252.0,65251.0,0.184718]
[1721213440056,1.08833757,65252.0,65251.0,0.184718]
[1721213440536,1.08833757,65252.0,65251.0,0.1429]
[1721213441743,1.08833757,65252.0,65249.0,0.009207]
[1721213441744,1.072795,65250.0,65249.0,0.009207]
[1721213442217,1.08435611,65250.0,65249.0,0.009207]
[1721213442450,1.20834001,65250.0,65249.0,0.009207]
[1721213443151,1.21034001,65250.0,65249.0,0.009207]
[1721213443599,1.2518236,65250.0,65249.0,0.009207]
[1721213443831,1.18635611,65250.0,65249.0,0.193625]
[1721213444527,1.18435611,65250.0,65249.0,0.193625]
[1721213445631,1.18735611,65250.0,65249.0,0.193625]
[1721213446290,1.18435611,65250.0,65249.0,0.193625]
[1721213446674,0.87784311,65250.0,65249.0,0.193625]
[1721213447630,0.88084311,65250.0,65249.0,0.193625]
[1721213449183,0.88084311,65250.0,65249.0,0.151807]
[1721213449724,0.88084311,65250.0,65249.0,0.193625]
[1721213454314,0.01456111,65250.0,65249.0,0.3662465]
[1721213454664,0.39792574,65268.0,65265.0,0.041818]
[1721213454866,0.459621,65271.0,65270.0,0.041818]
[1721213455070,0.4771,65276.0,65270.0,0.13870918]
[1721213455071,0.153205,65272.0,65270.0,0.13870918]
[1721213455285,0.06862181,65280.0,65270.0,0.0615]
[1721213455286,0.459621,65271.0,65270.0,0.0615]
[1721213455516,0.766035,65271.0,65270.0,0.0615]
[1721213455908,0.459621,65271.0,65270.0,0.0615]
[1721213456124,0.459621,65271.0,65270.0,0.103318]
[1721213456511,0.459621,65271.0,65270.0,0.14485938]
[1721213456737,0.153207,65271.0,65270.0,0.14485938]
[1721213457067,0.559621,65271.0,65270.0,0.14485938]
[1721213457274,0.559621,65271.0,65270.0,0.103318]
[1721213457696,0.253207,65271.0,65270.0,0.103318]
[1721213457902,0.1,65271.0,65270.0,0.103318]
[1721213458421,0.1,65272.0,65271.0,0.041818]
[1721213458862,0.2532,65274.0,65273.0,0.041818]
[1721213460054,0.2532,65274.0,65272.0,0.041818]
[1721213460260,0.153202,65273.0,65271.0,0.041818]
[1721213460601,0.1,65272.0,65271.0,0.041818]
[1721213460804,0.153199,65275.0,65274.0,0.117318]
[1721213461018,0.153199,65275.0,65274.0,0.181118]
[1721213461249,0.153194,65277.0,65276.0,0.041818]
[1721213461452,0.45958,65277.0,65276.0,0.041818]
[1721213462628,0.47121034,65277.0,65276.0,0.041818]
[1721213462880,0.47121034,65277.0,65274.0,0.181118]
[1721213462881,0.459594,65275.0,65274.0,0.181118]
[1721213463153,0.76599,65275.0,65274.0,0.1393]
[1721213463407,0.459621,65271.0,65270.0,0.041818]
[1721213463622,0.766035,65271.0,65270.0,0.041818]
[1721213463833,0.77766132,65271.0,65270.0,0.041818]
[1721213464659,0.766047,65270.0,65269.0,0.0604]
[1721213465075,0.77766769,65270.0,65269.0,0.0604]
[1721213465277,0.77766769,65270.0,65269.0,0.102218]
[1721213465707,1.08408669,65270.0,65269.0,0.0604]
[1721213465888,1.08408669,65270.0,65268.0,0.0827]
[1721213465889,0.76606,65269.0,65268.0,0.0827]
[1721213466028,0.153216,65267.0,65266.0,0.0603]
[1721213466222,1.072515,65267.0,65266.0,0.0603]
[1721213466427,1.072515,65267.0,65262.0,0.041818]
[1721213466428,0.459678,65263.0,65262.0,0.0603]
[1721213466635,0.11163761,65267.0,65259.0,0.0775]
[1721213466636,0.766165,65260.0,65259.0,0.0775]
[1721213467073,1.08418056,65260.0,65259.0,0.0775]
[1721213467688,1.072648,65259.0,65258.0,0.0624]
[1721213467899,1.072648,65259.0,65250.0,0.0624]
[1721213467900,0.459762,65251.0,65250.0,0.0624]
[1721213468206,1.08429652,65251.0,65250.0,0.0624]
[1721213468441,0.766282,65250.0,65249.0,0.009207]
[1721213468773,1.08428169,65250.0,65249.0,0.009207]
[1721213470051,1.18428169,65250.0,65249.0,0.009207]
[1721213470865,1.18428169,65250.0,65249.0,0.051025]
[1721213471296,1.18528169,65250.0,65249.0,0.051025]
[1721213471757,1.18528169,65250.0,65249.0,0.009207]
[1721213472178,1.18528169,65250.0,65249.0,0.051025]
[1721213472401,0.57225569,65250.0,65249.0,0.0623675]
[1721213472622,0.87876869,65250.0,65249.0,0.1443675]
[1721213472923,0.87876869,65250.0,65249.0,0.133025]
[1721213473590,0.47225569,65250.0,65249.0,0.133025]
[1721213473733,0.47125569,65250.0,65249.0,0.133025]
[1721213473923,0.47125569,65250.0,65249.0,0.134025]
[1721213474124,0.16474269,65250.0,65249.0,0.199925]
[1721213474388,0.16474269,65250.0,65249.0,0.38132323]
[1721213474389,0.01148669,65250.0,65249.0,0.38132323]
[1721213474590,0.01148669,65250.0,65249.0,0.22694149]
[1721213474741,0.460769,65250.0,65249.0,0.22694149]
[1721213474943,0.001,65250.0,65249.0,0.22694149]
[1721213475473,0.153251,65253.0,65252.0,0.041818]
[1721213475675,0.008182,65278.0,65261.0,0.041818]
[1721213475676,0.153228,65262.0,65261.0,0.041818]
[1721213475994,0.15323,65261.0,65260.0,0.041818]
[1721213476199,0.25323,65261.0,65260.0,0.041818]
[1721213476758,0.866152,65261.0,65260.0,0.041818]
[1721213476970,0.306475,65258.0,65257.0,0.041818]
[1721213477145,0.866187,65258.0,65257.0,0.041818]
[1721213478131,0.559712,65258.0,65257.0,0.0604198]
[1721213478328,0.559712,65258.0,65257.0,0.2100198]
[1721213478329,0.463712,65258.0,65257.0,0.2100198]
[1721213478900,0.466712,65258.0,65257.0,0.2100198]
[1721213480823,0.459712,65258.0,65257.0,0.191418]
[1721213481030,0.766187,65258.0,65257.0,0.191418]
[1721213481237,0.459712,65258.0,65257.0,0.191418]
[1721213482278,0.766187,65258.0,65257.0,0.191418]
[1721213482474,0.459712,65258.0,65257.0,0.171418]
[1721213482676,0.766187,65258.0,65257.0,0.171418]
[1721213482835,0.766187,65258.0,65257.0,0.0666]
[1721213483275,1.072662,65258.0,65257.0,0.0666]
[1721213484259,1.082662,65258.0,65257.0,0.0676]
[1721213484456,1.082662,65258.0,65257.0,0.0666]
[1721213484903,1.088662,65258.0,65257.0,0.001]
[1721213485756,0.7662,65257.0,65256.0,0.021818]
[1721213486214,1.07268,65257.0,65256.0,0.021818]
[1721213486910,0.7662,65257.0,65256.0,0.021818]
[1721213487804,0.7712,65257.0,65256.0,0.022818]
[1721213488292,0.78270037,65257.0,65256.0,0.022818]
[1721213490880,1.08918037,65257.0,65256.0,0.001]
[1721213491459,1.39566037,65257.0,65256.0,0.001]
[1721213491660,1.18918037,65257.0,65256.0,0.001]
[1721213492438,1.49566037,65257.0,65256.0,0.001]
[1721213492640,1.23000252,65257.0,65256.0,0.001]
[1721213493362,1.23391102,65257.0,65256.0,0.001]
[1721213493566,1.56437133,65257.0,65256.0,0.001]
[1721213493828,1.58087133,65257.0,65256.0,0.001]
[1721213494033,1.68087133,65257.0,65256.0,0.001]
[1721213495209,1.25789133,65257.0,65256.0,0.001]
[1721213495869,1.56437133,65257.0,65256.0,0.001]
[1721213495998,1.25789133,65257.0,65256.0,0.001]
[1721213496423,1.56437133,65257.0,65256.0,0.001]
[1721213496843,1.25789133,65257.0,65256.0,0.001]
[1721213497430,1.21706918,65257.0,65256.0,0.001]
[1721213497631,1.2580745,65257.0,65256.0,0.001]
[1721213500831,1.25826669,65257.0,65256.0,0.001]
[1721213504030,1.25857052,65257.0,65256.0,0.001]
[1721213506291,1.74243226,65257.0,65256.0,0.001]
[1721213506516,1.85893226,65257.0,65256.0,0.001]
[1721213506654,1.81106212,65257.0,65256.0,0.001]
[1721213507079,1.74243226,65257.0,65256.0,0.001]
[1721213507321,1.74277156,65257.0,65256.0,0.001]
[1721213508082,1.25890982,65257.0,65256.0,0.001]
[1721213508284,1.25890982,65257.0,65256.0,0.162718]
[1721213508692,1.25890982,65257.0,65256.0,0.163642]
[1721213508897,1.25974982,65257.0,65256.0,0.163642]
[1721213509996,1.25974982,65257.0,65256.0,0.141824]
[1721213510356,1.25974982,65257.0,65256.0,0.163642]
[1721213510554,1.26011405,65257.0,65256.0,0.163642]
[1721213513778,1.25973254,65257.0,65256.0,0.163642]
[1721213514892,1.25973254,65257.0,65256.0,0.141824]
[1721213515580,1.32851535,65257.0,65256.0,0.163642]
[1721213516932,1.32851535,65257.0,65256.0,0.141824]
[1721213516933,1.25973254,65257.0,65256.0,0.141824]
[1721213517165,1.2596493,65257.0,65256.0,0.141824]
[1721213517368,1.2596493,65257.0,65256.0,0.163642]
[1721213517573,1.32844822,65257.0,65256.0,0.141824]
[1721213517983,1.32844822,65257.0,65256.0,0.163642]
[1721213519675,0.25576822,65257.0,65256.0,0.163642]
[1721213519805,0.40900822,65257.0,65256.0,0.141824]
[1721213520007,0.40900822,65257.0,65256.0,0.163642]
[1721213520234,0.60494918,65257.0,65256.0,0.163642]
[1721213520454,1.02252719,65257.0,65256.0,0.163642]
[1721213520660,1.02252719,65257.0,65256.0,0.141824]
[1721213520867,1.32900719,65257.0,65256.0,0.141824]
[1721213521913,1.02252719,65257.0,65256.0,0.163642]
[1721213522741,1.02271647,65257.0,65256.0,0.163642]
[1721213522917,1.02271647,65257.0,65256.0,0.141824]
[1721213523119,1.32919647,65257.0,65256.0,0.141824]
[1721213524587,1.32805408,65257.0,65256.0,0.141824]
[1721213524998,1.35098177,65257.0,65256.0,0.141824]
[1721213525204,1.25927104,65257.0,65256.0,0.141824]
[1721213525404,1.35098177,65257.0,65256.0,0.141824]
[1721213525602,1.35098177,65257.0,65256.0,0.001924]
[1721213526092,1.25915543,65257.0,65256.0,0.001924]
[1721213526264,1.29995543,65257.0,65256.0,0.001924]
[1721213526496,1.35086598,65257.0,65256.0,0.001924]
[1721213526897,1.25915543,65257.0,65256.0,0.001924]
[1721213527470,1.91035535,65257.0,65256.0,0.001924]
[1721213527669,1.81871717,65257.0,65256.0,0.001924]
[1721213529184,1.81927721,65257.0,65256.0,0.001924]